fUST/lending_fUST_20260219
["ID","MTS","AMOUNT","RATE_DAILY","PERIOD"]
[405943134,1771433440729,-2551.36,0.00032876,19]
[405943136,1771433440738,-500.0,0.00032876,19]
[405943138,1771433440747,-500.0,0.00032876,19]
[405943140,1771433440756,-500.0,0.00032876,19]
[405943142,1771433440766,-500.0,0.00032876,2]
[405943144,1771433440775,-1063.51,0.00032876,19]
[405943146,1771433440784,-2439.08,0.00032876,19]
[405943148,1771433440793,-570.01,0.00032876,19]
[405943150,1771433440803,-151.0,0.00032877,2]
[405943152,1771433440812,-151.0,0.00032877,2]
[405943154,1771433440822,-151.0,0.00032877,2]
[405943156,1771433440831,-180.423261,0.00032877,2]
[405943158,1771433440840,-852.31,0.00032989,2]
[405943160,1771433440849,-852.31,0.00032989,2]
[405943162,1771433440859,-852.31,0.00032989,2]
[405943164,1771433440868,-852.31,0.00032989,2]
[405943166,1771433440878,-852.31,0.00032989,2]
[405943168,1771433440888,-100000.0,0.0003299,2]
[405943170,1771433440896,-500.0,0.00032998,2]
[405943172,1771433440907,-3349323.29058939,0.00033,10]
[405943174,1771433440921,-273773.9352682,0.00033,10]
[405943189,1771433441058,-921.0,0.00032874,30]
[405943191,1771433441067,-60.58956942,0.00033,10]
[405943193,1771433441081,-6757.42593967,0.00033,10]
[405943565,1771433444703,-585.97660249,0.00033,10]
[405943568,1771433444714,-7173.62971349,0.00033,10]
[405943570,1771433444725,-1994.81770619,0.00033,10]
[405943693,1771433445797,-1326.53476693,0.00033,10]
[405943699,1771433445849,-1417.38489443,0.00033,10]
[405943702,1771433445863,-1042.12160456,0.00033,10]
[405943707,1771433445903,-407.842,0.00033,10]
[405944095,1771434260412,191.52147508,0.000156,120]
[405945085,1771434638123,-208.5345321,0.00012213,2]
[405945086,1771434638133,-208.5345321,0.00012336,2]
[405945087,1771434638143,-208.5345321,0.00012461,2]
[405945088,1771434638152,-614.5363946,0.00012468,2]
[405945089,1771434638162,-150.0,0.00012651,2]
[405945090,1771434638175,-208.5345321,0.00012972,2]
[405945093,1771434638185,-500.0,0.00013273,2]
[405945095,1771434638195,-500.0,0.00013273,2]
[405945097,1771434638204,-500.0,0.00013696,2]
[405945099,1771434638214,-190.02643815,0.00013696,2]
[405945101,1771434638224,-500.0,0.00013696,2]
[405945103,1771434638233,-500.0,0.00013696,2]
[405945104,1771434638242,-500.0,0.00013696,2]
[405945105,1771434638252,-500.0,0.00013696,2]
[405945106,1771434638262,-500.0,0.00013696,2]
[405945107,1771434638271,-500.0,0.00013696,2]
[405945108,1771434638281,-500.0,0.00013696,2]
[405945109,1771434638293,-500.0,0.00013696,2]
[405945110,1771434638306,-500.0,0.00013696,2]
[405945111,1771434638317,-500.0,0.00013696,2]
[405945112,1771434638329,-500.0,0.00013696,2]
[405945113,1771434638340,-500.0,0.00013696,2]
[405945114,1771434638352,-500.0,0.00013696,2]
[405945115,1771434638363,-500.0,0.00013696,2]
[405945116,1771434638374,-500.0,0.00013696,2]
[405945117,1771434638384,-500.0,0.00013696,2]
[405945118,1771434638395,-500.0,0.00013696,2]
[405945119,1771434638407,-500.0,0.00013696,2]
[405945120,1771434638418,-500.0,0.00013696,2]
[405945121,1771434638428,-500.0,0.00013696,2]
[405945122,1771434638439,-500.0,0.00013696,2]
[405945123,1771434638451,-500.0,0.00013696,2]
[405945124,1771434638462,-594.84344019,0.00013696,2]
[405945125,1771434638474,-322.60479533,0.00013696,2]
[405945126,1771434638485,-500.0,0.00013696,2]
[405945127,1771434638500,-500.0,0.00013696,2]
[405945128,1771434638511,-500.0,0.00013696,2]
[405945129,1771434638523,-500.0,0.00013696,2]
[405945130,1771434638534,-500.0,0.00013696,2]
[405945131,1771434638546,-500.0,0.00013696,2]
[405945132,1771434638558,-500.0,0.00013696,2]
[405945133,1771434638576,-500.0,0.00013696,2]
[405945134,1771434638588,-500.0,0.00013696,2]
[405945135,1771434638599,-500.0,0.00013696,2]
[405945136,1771434638610,-500.0,0.00013696,2]
[405945137,1771434638622,-500.0,0.00013696,2]
[405945138,1771434638637,-500.0,0.00013696,2]
[405945139,1771434638649,-500.0,0.00013696,2]
[405945140,1771434638660,-500.0,0.00013696,2]
[405945141,1771434638672,-500.0,0.00013696,2]
[405945142,1771434638683,-500.0,0.00013696,2]
[405945143,1771434638695,-500.0,0.00013696,2]
[405945144,1771434638707,-500.0,0.00013696,2]
[405945145,1771434638718,-500.0,0.00013696,2]
[405945146,1771434638730,-289.14785578,0.00013696,2]
[405945147,1771434638740,-500.0,0.00013696,2]
[405945148,1771434638752,-500.0,0.00013696,2]
[405945149,1771434638762,-500.0,0.00013696,2]
[405945150,1771434638772,-500.0,0.00013696,2]
[405945151,1771434638782,-500.0,0.00013696,2]
[405945152,1771434638792,-500.0,0.00013696,2]
[405945153,1771434638803,-500.0,0.00013696,2]
[405945154,1771434638814,-500.0,0.00013696,2]
[405945155,1771434638824,-500.0,0.00013696,2]
[405945156,1771434638837,-500.0,0.00013696,2]
[405945157,1771434638848,-500.0,0.00013696,2]
[405945158,1771434638860,-500.0,0.00013696,2]
[405945159,1771434638874,-500.0,0.00013696,2]
[405945160,1771434638886,-500.0,0.00013696,2]
[405945161,1771434638898,-500.0,0.00013696,2]
[405945162,1771434638909,-500.0,0.00013696,2]
[405945163,1771434638920,-500.0,0.00013696,2]
[405945164,1771434638933,-500.0,0.00013696,2]
[405945165,1771434638944,-500.0,0.00013696,2]
[405945166,1771434638955,-500.0,0.00013696,2]
[405945167,1771434638968,-500.0,0.00013696,2]
[405945168,1771434638978,-500.0,0.00013696,2]
[405945169,1771434638991,-500.0,0.00013696,2]
[405945170,1771434639002,-500.0,0.00013696,2]
[405945171,1771434639012,-500.0,0.00013696,2]
[405945172,1771434639023,-500.0,0.00013696,2]
[405945173,1771434639033,-500.0,0.00013696,2]
[405945174,1771434639044,-414.77200059,0.00013696,2]
[405945175,1771434639054,-500.0,0.00013696,2]
[405945176,1771434639065,-500.0,0.00013696,2]
[405945177,1771434639076,-500.0,0.00013696,2]
[405945178,1771434639088,-500.0,0.00013696,2]
[405945179,1771434639100,-500.0,0.00013696,2]
[405945180,1771434639113,-500.0,0.00013696,2]
[405945181,1771434639124,-300.0,0.00013696,2]
[405945182,1771434639136,-300.0,0.00013696,2]
[405945183,1771434639146,-1200.0,0.00013696,2]
[405945184,1771434639156,-300.0,0.00013696,2]
[405945185,1771434639166,-24119.56967027,0.00013697,2]
[405945186,1771434639176,-496.92958337,0.00013698,2]
[405945187,1771434639187,-404.44941955,0.00013699,2]
[405945188,1771434639197,-500.0,0.00013699,2]
[405945189,1771434639210,-500.0,0.00013699,2]
[405945190,1771434639223,-500.0,0.00013699,2]
[405945191,1771434639233,-500.0,0.00013699,2]
[405945192,1771434639244,-552.65904607,0.00013699,2]
[405945193,1771434639254,-500.0,0.00013699,2]
[405945194,1771434639264,-500.0,0.00013699,2]
[405945195,1771434639274,-500.0,0.00013699,2]
[405945196,1771434639284,-500.0,0.00013699,2]
[405945197,1771434639294,-500.0,0.00013699,2]
[405945198,1771434639304,-267.2856157,0.00014247,2]
[405945199,1771434639314,-300.0,0.00014381,2]
[405945200,1771434639325,-270.39645689,0.00014651,2]
[405945201,1771434639335,-500.0,0.00016437,2]
[405945202,1771434639346,-500.0,0.00016438,2]
[405945203,1771434639356,-500.0,0.00016438,2]
[405945204,1771434639367,-500.0,0.00016438,2]
[405945205,1771434639378,-150.0,0.00017808,2]
[405945206,1771434639389,-250.0,0.00018356,2]
[405945207,1771434639400,-743.5267485,0.00018707,2]
[405945208,1771434639411,-200.0,0.00018904,2]
[405945209,1771434639425,-883.0,0.0002074,10]
[405945210,1771434639436,-198.2,0.00025872,2]
[405945211,1771434639446,-500.0,0.00025971,2]
[405945212,1771434639457,-1380.0,0.00025972,2]
[405945213,1771434639470,-634.0,0.00025972,2]
[405945214,1771434639480,-357.251,0.00025972,2]
[405945217,1771434639498,-193.076,0.00025972,2]
[405945218,1771434639515,-500.143,0.00025972,2]
[405945219,1771434639530,-636.82716143,0.00026573,2]
[405945220,1771434639542,-600.0,0.00026573,19]
[405945221,1771434639555,-1056.00975444,0.00027443,2]
[405945222,1771434639567,-181.0,0.00028972,2]
[405945223,1771434639579,-177.14392619,0.00029573,2]
[405945224,1771434639591,-596.43845421,0.00029673,2]
[405945225,1771434639603,-500.0,0.00029979,2]
[405945226,1771434639615,-6504.07,0.0003,30]
[405945227,1771434639627,-4458.35,0.0003087,10]
[405945228,1771434639639,-3715.3,0.0003087,10]
[405945230,1771434639651,-5350.02,0.0003088,10]
[405945231,1771434639663,-6420.03,0.0003089,10]
[405945232,1771434639674,-6504.07,0.000309,30]
[405945233,1771434639687,-287.643353,0.00031089,2]
[405945234,1771434639698,-6504.07,0.000318,30]
[405945235,1771434639710,-181.0,0.00031972,2]
[405945236,1771434639721,-521.65394713,0.00032134,2]
[405945237,1771434639732,-500.0,0.00032384,2]
[405945238,1771434639743,-6504.07,0.000327,120]
[405945239,1771434639754,-542.02,0.00032846,3]
[405945240,1771434639765,-8844.65684713,0.00032856,2]
[405945241,1771434639776,-361.33,0.00032866,3]
[405945242,1771434639787,-180.67,0.00032866,3]
[405945254,1771434639798,-500.0,0.00032876,19]
[405945257,1771434639968,-1437.64,0.00032876,19]
[405945259,1771434639977,-409.58514199,0.00032876,19]
[405945260,1771434639988,-894.25,0.00032876,7]
[405945262,1771434639998,-546.25,0.00032876,19]
[405945264,1771434640008,-500.0,0.00032876,19]
[405945266,1771434640018,-500.0,0.00032876,19]
[405945268,1771434640027,-2770.5,0.00032876,120]
[405945270,1771434640038,-311.71779491,0.00032876,19]
[405945272,1771434640048,-500.0,0.00032876,19]
[405945275,1771434640058,-500.0,0.00032876,19]
[405945276,1771434640067,-1790.37,0.00032876,19]
[405945278,1771434640075,-500.0,0.00032876,19]
[405945280,1771434640084,-2445.06,0.00032876,19]
[405945282,1771434640094,-2337.45,0.00032876,19]
[405945284,1771434640103,-1019.2,0.00032876,19]
[405945286,1771434640112,-500.0,0.00032876,2]
[405945288,1771434640121,-177.47502497,0.00032876,19]
[405945291,1771434640130,-6616.93732809,0.0003299,2]
[405945293,1771434640144,-32432.57462237,0.0003299,2]
[405945314,1771434640337,-809.0,0.00025972,10]
[405945316,1771434640346,-50.0,0.0003299,2]
[405945748,1771434644557,-523.49,0.00032876,19]
[405945750,1771434644567,-1383.37292564,0.0003299,2]
[405945752,1771434644578,-1797.33692728,0.0003299,2]
[405945757,1771434644614,-2056.30000005,0.0003299,2]
[405945808,1771434645929,-6501.25283976,0.0003266,2]
[405945809,1771434645942,-863.81,0.0003266,2]
[405945810,1771434646100,-1072.59920182,0.0003266,2]
[405945811,1771434646110,-28477.96079824,0.0003299,2]
[405945814,1771434846140,676.02708796,0.000156,120]
[405945815,1771434855296,1729.42884693,0.000156,120]
[405945861,1771435832060,-670.51,4.2e-07,2]
[405945862,1771435832073,-247.49,4.2e-07,2]
[405945863,1771435832083,-918.0,4.2e-07,2]
[405945864,1771435832092,-22.35927605,4.2e-07,2]
[405945865,1771435832103,-457.64072395,4.2e-07,2]
[405945866,1771435832112,-153.0,4.3e-07,2]
[405945867,1771435832121,-153.0,4.3e-07,2]
[405945868,1771435832130,-153.0,4.3e-07,2]
[405945869,1771435832139,-153.0,4.3e-07,2]
[405945870,1771435832149,-153.0,4.3e-07,2]
[405945871,1771435832158,-153.0,4.3e-07,2]
[405945872,1771435832167,-263.30289554,2.092e-05,2]
[405945873,1771435832175,-500.0,0.00013273,2]
[405945874,1771435832185,-288.55728879,0.00013698,2]
[405945875,1771435832200,-11.44271121,0.00013698,2]
[405945876,1771435832209,-345.39040608,0.00013699,2]
[405945877,1771435832222,-500.0,0.00013699,2]
[405945878,1771435832233,-500.0,0.00013699,2]
[405945879,1771435832242,-38.65118069,0.00013821,2]
[405945880,1771435832253,-760.31664749,0.00013821,2]
[405945881,1771435832263,-424.72702378,0.00018,2]
[405945882,1771435832272,-743.5267485,0.00018522,2]
[405945883,1771435832281,-100.57792233,0.00019,2]
[405945906,1771435838243,-370.81903333,0.00013699,2]
[405945907,1771435838254,-129.18096667,0.00013699,2]
[405945908,1771435838264,-2962.85979994,0.0001881,2]
[405945909,1771435838274,-1195.38280287,0.00019,2]
[405946494,1771435845747,-541.47696795,0.0001881,2]
[405946497,1771435845758,-664.2155522,0.00019,2]
[405946546,1771435846176,-3025.72,0.00019,2]
[405946562,1771435846336,-693.0987077,0.00019,2]
[405946564,1771435846345,-500.0,0.00019852,2]
[405946566,1771435846354,-617.73957776,0.00019999,2]
[405946568,1771435846363,-500.0,0.00019999,2]
[405946570,1771435846372,-500.0,0.00019999,2]
[405946572,1771435846381,-500.0,0.00019999,2]
[405946574,1771435846390,-500.0,0.00019999,2]
[405946576,1771435846399,-500.0,0.00019999,2]
[405946578,1771435846408,-500.0,0.00019999,2]
[405946580,1771435846417,-500.0,0.00019999,2]
[405946582,1771435846426,-500.0,0.00019999,2]
[405946584,1771435846436,-500.0,0.00019999,2]
[405946586,1771435846444,-500.0,0.00019999,2]
[405946588,1771435846453,-500.0,0.00019999,2]
[405946589,1771435846464,-500.0,0.00019999,2]
[405946591,1771435846473,-500.0,0.00019999,2]
[405946593,1771435846483,-500.0,0.00019999,2]
[405946595,1771435846491,-500.0,0.00019999,2]
[405946597,1771435846500,-500.0,0.00019999,2]
[405946598,1771435846509,-500.0,0.00019999,2]
[405946600,1771435846518,-500.0,0.00019999,2]
[405946602,1771435846527,-500.0,0.00019999,2]
[405946604,1771435846536,-500.0,0.00019999,2]
[405946606,1771435846546,-500.0,0.00019999,2]
[405946608,1771435846555,-500.0,0.00019999,2]
[405946610,1771435846564,-237.5629178,0.00019999,2]
[405946612,1771435846574,-500.0,0.00019999,2]
[405946614,1771435846583,-1664.58943095,0.0002,2]
[405947146,1771436322476,-84329.51311372,0.00041004,120]
[405947147,1771436322500,-20000.0,0.00041004,30]
[405947148,1771436322525,-20000.0,0.00041004,30]
[405947149,1771436322549,-13000.0,0.00041004,120]
[405947150,1771436322573,-861.24824212,0.00041004,120]
[405947151,1771436322597,-5000.0,0.00041004,30]
[405947152,1771436322622,-22192.382663,0.00041004,60]
[405947153,1771436322646,-5372.07493646,0.00041004,60]
[405947154,1771436322669,-9135.1647,0.00041004,120]
[405947155,1771436322693,-1689.94140089,0.00041004,120]
[405947156,1771436322717,-600.56681,0.00041004,60]
[405947157,1771436322741,-348.9991576,0.00041004,120]
[405947158,1771436322764,-1295.97959588,0.00041004,30]
[405947159,1771436322787,-13600.0,0.00041004,120]
[405947160,1771436322813,-200.0,0.00041004,30]
[405947161,1771436322836,-522.2943132,0.00041004,120]
[405947162,1771436322858,-358.83889676,0.00041004,120]
[405947163,1771436322880,-158.87924553,0.00041004,30]
[405947164,1771436322902,-207.03617841,0.00041004,118]
[405947165,1771436322924,-170.71375,0.00041004,60]
[405947166,1771436322949,-674.80060731,0.00041004,30]
[405947167,1771436322972,-721.60775747,0.00041004,30]
[405947168,1771436322995,-232.47634498,0.00041004,120]
[405947169,1771436323019,-326.36173715,0.00041004,30]
[405947170,1771436323041,-1558.41372434,0.00041004,120]
[405947171,1771436323063,-323.0417871,0.00041004,120]
[405947172,1771436323217,-500.0,0.00041004,30]
[405947173,1771436323246,-1623.30969603,0.00041004,120]
[405947174,1771436323269,-362.02386,0.00041004,60]
[405947175,1771436323291,-637.0,0.00041004,120]
[405947176,1771436323314,-2500000.0,0.00041004,120]
[405947177,1771436323340,-3291.0,0.00041004,120]
[405947178,1771436323367,-872203.30951236,0.00041004,30]
[405947179,1771436323391,-418503.02196969,0.00041004,30]
[405947180,1771436326943,-394933.74357373,0.00041004,30]
[405947181,1771436326968,-68787.87395997,0.00041004,45]
[405947182,1771436326994,-224102.44493997,0.00041004,30]
[405947183,1771436327022,-1895.49392697,0.00041004,120]
[405947184,1771436327045,-164.20801619,0.00041004,120]
[405947185,1771436327070,-1004265.25505424,0.00041004,120]
[405947186,1771436327093,-1657.43976175,0.00041004,30]
[405947187,1771436327116,-975.52525105,0.00041004,30]
[405947188,1771436327138,-931.24309376,0.00041004,120]
[405947189,1771436327161,-9684.6341042,0.00041004,120]
[405947190,1771436327185,-1466.28074433,0.00041004,120]
[405947191,1771436327209,-518.4277,0.00041004,120]
[405947192,1771436327233,-220.04446522,0.00041004,120]
[405947193,1771436327257,-864.19395,0.00041004,60]
[405947194,1771436327280,-346.0,0.00041004,120]
[405947195,1771436327303,-1000.0,0.00041004,120]
[405947196,1771436327327,-1398.1231334,0.00041004,30]
[405947197,1771436327353,-348.84430564,0.00041004,120]
[405947198,1771436327376,-258.988372,0.00041004,30]
[405947199,1771436327401,-876.12352109,0.00041004,30]
[405947200,1771436327429,-411.34274425,0.00041004,120]
[405947201,1771436327453,-591.3358292,0.00041004,120]
[405947202,1771436327478,-485.14066388,0.00041004,30]
[405947203,1771436327501,-2238.68541414,0.00041004,120]
[405947204,1771436327525,-536.97843674,0.00041004,120]
[405947205,1771436327548,-1026.77385043,0.00041004,120]
[405947206,1771436327571,-4022.62180457,0.00041004,60]
[405947207,1771436327594,-1241.61338957,0.00041004,60]
[405947208,1771436327617,-2090.38097121,0.00041004,120]
[405947209,1771436327639,-440.55553959,0.00041004,120]
[405947210,1771436327664,-12154.06473885,0.00041004,33]
[405947211,1771436327687,-866.35187917,0.00041004,30]
[405947212,1771436327710,-1040.0,0.00041004,120]
[405947213,1771436327733,-1697.15970359,0.00041004,60]
[405947214,1771436327764,-200.0,0.00041004,30]
[405947215,1771436327790,-1763.0,0.00041004,30]
[405947216,1771436327814,-1064.63,0.00041004,120]
[405947217,1771436327840,-5418.27214,0.00041004,120]
[405947218,1771436327866,-25323.2799002,0.00041004,30]
[405947219,1771436327892,-256.46977351,0.00041004,118]
[405947220,1771436327921,-10666.3373463,0.00041004,60]
[405947221,1771436327948,-387651.13674057,0.00041004,60]
[405947222,1771436327974,-343.8371576,0.00041004,120]
[405947223,1771436327999,-20379.01309152,0.00041004,120]
[405947224,1771436328025,-260.28318376,0.00041004,120]
[405947225,1771436328053,-12840.361572,0.00041004,120]
[405947226,1771436328079,-1987.78845496,0.00041004,30]
[405947227,1771436328105,-1718.34134205,0.00041004,35]
[405947228,1771436328132,-155.0823293,0.00041004,30]
[405947229,1771436328160,-6581.3616378,0.00041004,120]
[405947230,1771436328186,-775.78361612,0.00041004,30]
[405947231,1771436328211,-171.08413126,0.00041004,120]
[405947232,1771436328237,-310.6332058,0.00041004,120]
[405947233,1771436328264,-12114.0,0.00041004,120]
[405947234,1771436328291,-541.98646997,0.00041004,31]
[405947235,1771436328317,-12723.77998104,0.00041004,30]
[405947236,1771436328348,-10000.000001,0.00041004,30]
[405947237,1771436328375,-8638.49003013,0.00041004,30]
[405947238,1771436328404,-20361.32782651,0.00041004,30]
[405947239,1771436328431,-19011.54855869,0.00041004,30]
[405947240,1771436328457,-36457.15754069,0.00041004,30]
[405947241,1771436328484,-153628.20226807,0.00041004,30]
[405947242,1771436328509,-42386.7406255,0.00041004,30]
[405947243,1771436328534,-8080.05575395,0.00041004,30]
[405947244,1771436328563,-1454652.122483,0.00041004,30]
[405947245,1771436333089,-245347.88230699,0.00041004,30]
[405947246,1771436333114,-26353.44930864,0.00041004,30]
[405947247,1771436333138,-9634.2870523,0.00041004,30]
[405947248,1771436333163,-51154.42797187,0.00041004,30]
[405947249,1771436333189,-17523.4360734,0.00041004,30]
[405947250,1771436333214,-1610683.02930558,0.00041004,30]
[405947251,1771436333238,-150.0,0.00041004,30]
[405947252,1771436333262,-500.0,0.00041004,120]
[405947253,1771436333287,-67203.1809316,0.00041004,120]
[405947254,1771436333312,-2572.01,0.00041004,32]
[405947255,1771436333340,-685.47346102,0.00041004,120]
[405947256,1771436333367,-298.08113,0.00041004,60]
[405947257,1771436333394,-212.28959353,0.00041004,118]
[405947258,1771436333420,-1156.0,0.00041004,120]
[405947259,1771436333445,-224275.38,0.00041004,120]
[405947260,1771436333471,-1742251.07286507,0.00041004,30]
[405947261,1771436336647,-1643353.35260579,0.00041004,30]
[405947262,1771436336672,-1189.91,0.00041004,120]
[405947263,1771436336698,-30243.0113902,0.00041004,120]
[405947264,1771436336723,-1347.13862586,0.00041004,120]
[405947265,1771436336746,-152.78562955,0.00041004,120]
[405947266,1771436336770,-294.10209828,0.00041004,120]
[405947267,1771436336794,-279.84354704,0.00041004,31]
[405947268,1771436336817,-166.35885698,0.00041004,120]
[405947269,1771436336840,-315.4779048,0.00041004,120]
[405947270,1771436336862,-10000.0,0.00041004,30]
[405947271,1771436336887,-4608.45,0.00041004,30]
[405947272,1771436336910,-8569.49185203,0.00041004,60]
[405947273,1771436336933,-5501.0932051,0.00041004,30]
[405947274,1771436336957,-199999.999999,0.00041004,45]
[405947275,1771436336981,-6902.0,0.00041004,120]
[405947276,1771436337005,-6080.0,0.00041004,120]
[405947277,1771436337029,-285.0,0.00041004,120]
[405947278,1771436337052,-247.52627839,0.00041004,120]
[405947279,1771436337076,-261.52478426,0.00041004,120]
[405947280,1771436337100,-479.96904057,0.00041004,120]
[405947281,1771436337124,-170.50880214,0.00041004,120]
[405947282,1771436337148,-261.52478426,0.00041004,120]
[405947283,1771436337171,-247.52627839,0.00041004,120]
[405947284,1771436337194,-479.96904057,0.00041004,120]
[405947285,1771436337219,-170.50880214,0.00041004,120]
[405947286,1771436337242,-247.52627839,0.00041004,120]
[405947287,1771436337267,-261.52478426,0.00041004,120]
[405947288,1771436337291,-479.96904057,0.00041004,120]
[405947289,1771436337315,-170.50880214,0.00041004,120]
[405947290,1771436337340,-479.96904057,0.00041004,120]
[405947291,1771436337364,-479.96904057,0.00041004,120]
[405947292,1771436337393,-479.96904057,0.00041004,120]
[405947293,1771436337418,-500.0,0.00041004,30]
[405947294,1771436337442,-298.95426798,0.00041004,30]
[405947295,1771436337467,-500.0,0.00041004,30]
[405947296,1771436337493,-320.87021477,0.00041004,120]
[405947297,1771436337518,-383.56440887,0.00041004,120]
[405947298,1771436337542,-189.24766419,0.00041004,120]
[405947299,1771436337566,-230.68877695,0.00041004,120]
[405947300,1771436337592,-156.75845934,0.00041004,120]
[405947301,1771436337618,-383.56440887,0.00041004,120]
[405947302,1771436337645,-383.56440887,0.00041004,120]
[405947303,1771436337672,-383.56440887,0.00041004,120]
[405947304,1771436337698,-383.56440887,0.00041004,120]
[405947305,1771436337724,-383.56440887,0.00041004,120]
[405947306,1771436337753,-383.56440887,0.00041004,120]
[405947307,1771436337778,-383.56440887,0.00041004,120]
[405947308,1771436337802,-383.56440887,0.00041004,120]
[405947309,1771436337828,-383.56440887,0.00041004,120]
[405947310,1771436337854,-383.56440887,0.00041004,120]
[405947311,1771436337878,-383.56440887,0.00041004,120]
[405947312,1771436337904,-383.56440887,0.00041004,120]
[405947313,1771436337927,-383.56440887,0.00041004,120]
[405947314,1771436337951,-383.56440887,0.00041004,120]
[405947315,1771436337974,-383.56440887,0.00041004,120]
[405947316,1771436337998,-383.56440887,0.00041004,120]
[405947317,1771436338023,-189.24766418,0.00041004,120]
[405947318,1771436338047,-159.28781873,0.00041004,120]
[405947319,1771436338070,-159.28781873,0.00041004,120]
[405947320,1771436338093,-159.28781873,0.00041004,120]
[405947321,1771436338117,-159.28781873,0.00041004,120]
[405947322,1771436338142,-159.28781873,0.00041004,120]
[405947323,1771436338166,-159.28781873,0.00041004,120]
[405947324,1771436338190,-159.28781873,0.00041004,120]
[405947325,1771436338214,-15545.89836522,0.00041004,60]
[405947326,1771436338238,-448.35426745,0.00041004,120]
[405947327,1771436338262,-166.4726479,0.00041004,120]
[405947328,1771436338286,-160.66552351,0.00041004,120]
[405947329,1771436338310,-448.35426745,0.00041004,120]
[405947330,1771436338435,-166.4726479,0.00041004,120]
[405947331,1771436338460,-160.66552351,0.00041004,120]
[405947332,1771436338484,-448.35426745,0.00041004,120]
[405947333,1771436338508,-166.4726479,0.00041004,120]
[405947334,1771436338532,-160.66552351,0.00041004,120]
[405947335,1771436338555,-448.35426745,0.00041004,120]
[405947336,1771436338578,-160.66552351,0.00041004,120]
[405947337,1771436338602,-448.35426745,0.00041004,120]
[405947338,1771436338625,-160.66552351,0.00041004,120]
[405947339,1771436338652,-448.35426745,0.00041004,120]
[405947340,1771436338674,-160.66552351,0.00041004,120]
[405947341,1771436338697,-448.35426745,0.00041004,120]
[405947342,1771436338721,-160.66552351,0.00041004,120]
[405947343,1771436338747,-448.35426745,0.00041004,120]
[405947344,1771436338772,-448.35426745,0.00041004,120]
[405947345,1771436338797,-448.35426745,0.00041004,120]
[405947346,1771436338820,-241.50037973,0.00041004,120]
[405947347,1771436338843,-338.8353726,0.00041004,120]
[405947348,1771436338865,-167.11262935,0.00041004,120]
[405947349,1771436338887,-171.29861805,0.00041004,120]
[405947350,1771436338911,-338.8353726,0.00041004,120]
[405947351,1771436338934,-167.11262935,0.00041004,120]
[405947352,1771436338958,-171.29861805,0.00041004,120]
[405947353,1771436338983,-338.8353726,0.00041004,120]
[405947354,1771436339008,-171.29861805,0.00041004,120]
[405947355,1771436339033,-338.8353726,0.00041004,120]
[405947356,1771436339057,-171.29861805,0.00041004,120]
[405947357,1771436339082,-338.8353726,0.00041004,120]
[405947358,1771436339109,-171.29861805,0.00041004,120]
[405947359,1771436339134,-171.29861805,0.00041004,120]
[405947360,1771436339157,-338.8353726,0.00041004,120]
[405947361,1771436339180,-338.8353726,0.00041004,120]
[405947362,1771436339203,-338.8353726,0.00041004,120]
[405947363,1771436339225,-338.8353726,0.00041004,120]
[405947364,1771436339246,-248.60906186,0.00041004,120]
[405947365,1771436339270,-304.1958851,0.00041004,120]
[405947366,1771436339293,-208.33111767,0.00041004,120]
[405947367,1771436339316,-154.98586783,0.00041004,120]
[405947368,1771436339344,-304.1958851,0.00041004,120]
[405947369,1771436339382,-170.0,0.00041004,120]
[405947370,1771436339414,-202.72092055,0.00041004,120]
[405947371,1771436339439,-218.99709186,0.00041004,120]
[405947372,1771436339462,-257.57634817,0.00041004,120]
[405947373,1771436339486,-161.90908158,0.00041004,120]
[405947374,1771436339509,-191.55816659,0.00041004,120]
[405947375,1771436339534,-287.36506553,0.00041004,120]